[Event "*** Titled Tuesday Blitz"]
[Site "Chess.com"]
[Date "2020.05.26"]
[Round "3"]
[White "AlanZhang"]
[Black "RitvarsReimanis"]
[Result "1-0"]
[WhiteElo "2250"]
[BlackElo "2480"]
[TimeControl "180+1"]
[EndTime "10:27:56 PDT"]
[Termination "AlanZhang won on time"]

1. e4 {[%clk 0:03:00.9]} 1... c5 {[%clk 0:02:56.6]} 2. Nf3 {[%clk 0:03:01.4]}
2... Nc6 {[%clk 0:02:56.7]} 3. d4 {[%clk 0:03:01.3]} 3... cxd4 {[%clk
0:02:57.6]} 4. Nxd4 {[%clk 0:03:01.5]} 4... Nf6 {[%clk 0:02:57.7]} 5. Nc3 {[%clk
0:03:02]} 5... e5 {[%clk 0:02:57.6]} 6. Ndb5 {[%clk 0:03:01.9]} 6... d6 {[%clk
0:02:57.8]} 7. Bg5 {[%clk 0:03:02.1]} 7... a6 {[%clk 0:02:57.6]} 8. Na3 {[%clk
0:03:02.7]} 8... b5 {[%clk 0:02:54.1]} 9. Nd5 {[%clk 0:03:03.2]} 9... Be7 {[%clk
0:02:52.1]} 10. Bxf6 {[%clk 0:03:03.6]} 10... Bxf6 {[%clk 0:02:52.4]} 11. c4
{[%clk 0:03:04.2]} 11... b4 {[%clk 0:02:52.2]} 12. Nc2 {[%clk 0:03:04.3]} 12...
O-O {[%clk 0:02:52.9]} 13. h4 {[%clk 0:03:03.6]} 13... a5 {[%clk 0:02:44.4]} 14.
b3 {[%clk 0:03:03.5]} 14... Nd4 {[%clk 0:02:27.5]} 15. Nxd4 {[%clk 0:02:14]}
15... exd4 {[%clk 0:02:26.4]} 16. g3 {[%clk 0:02:14.5]} 16... Bb7 {[%clk
0:02:23.4]} 17. Nxf6+ {[%clk 0:02:05.6]} 17... Qxf6 {[%clk 0:02:23]} 18. Bg2
{[%clk 0:02:05.3]} 18... Rfe8 {[%clk 0:02:05.8]} 19. Qd3 {[%clk 0:02:03.7]}
19... Qg6 {[%clk 0:01:48.5]} 20. Qxd4 {[%clk 0:01:55.4]} 20... Bxe4 {[%clk
0:01:41.9]} 21. O-O {[%clk 0:01:55]} 21... Bxg2 {[%clk 0:01:32.9]} 22. Kxg2
{[%clk 0:01:55.9]} 22... Re6 {[%clk 0:01:10.8]} 23. Rfe1 {[%clk 0:01:41.5]}
23... Rae8 {[%clk 0:01:05.3]} 24. Qxd6 {[%clk 0:01:16.5]} 24... h6 {[%clk
0:00:57.8]} 25. Rxe6 {[%clk 0:01:11]} 25... Rxe6 {[%clk 0:00:58.7]} 26. Qc5
{[%clk 0:01:08.5]} 26... Re2 {[%clk 0:00:56.8]} 27. Qxa5 {[%clk 0:00:55.3]}
27... Qe4+ {[%clk 0:00:17.6]} 28. Kg1 {[%clk 0:00:55.2]} 28... Rxf2 {[%clk
0:00:10.1]} 29. Qd8+ {[%clk 0:00:49.4]} 29... Kh7 {[%clk 0:00:08.7]} 30. Kxf2
{[%clk 0:00:48.8]} 30... Qc2+ {[%clk 0:00:09]} 31. Kg1 {[%clk 0:00:48]} 31...
Qc3 {[%clk 0:00:09.3]} 32. Qd1 {[%clk 0:00:36]} 32... Qxg3+ {[%clk 0:00:09.3]}
33. Kf1 {[%clk 0:00:36]} 33... Qh3+ {[%clk 0:00:09.7]} 34. Ke2 {[%clk
0:00:35.6]} 34... Qg2+ {[%clk 0:00:09.3]} 35. Kd3 {[%clk 0:00:35.1]} 35... Qg3+
{[%clk 0:00:08.5]} 36. Kc2 {[%clk 0:00:32.7]} 36... Qc3+ {[%clk 0:00:05.6]} 37.
Kb1 {[%clk 0:00:32.6]} 37... g6 {[%clk 0:00:06.3]} 38. a3 {[%clk 0:00:27.6]}
38... bxa3 {[%clk 0:00:04]} 39. Rxa3 {[%clk 0:00:28.5]} 39... h5 {[%clk
0:00:03.1]} 40. Ra7 {[%clk 0:00:25.9]} 40... Kg7 {[%clk 0:00:02]} 41. Qc2 {[%clk
0:00:20.5]} 41... Qe3 {[%clk 0:00:02.1]} 42. Qb2+ {[%clk 0:00:19.3]} 42... Kh6
{[%clk 0:00:02.7]} 43. Qc1 {[%clk 0:00:18.6]} 1-0

[Event "*** Titled Tuesday Blitz"]
[Site "Chess.com"]
[Date "2020.05.26"]
[Round "3"]
[White "Koalaskakistis"]
[Black "Jospem"]
[Result "0-1"]
[WhiteElo "2455"]
[BlackElo "2862"]
[TimeControl "180+1"]
[EndTime "10:27:57 PDT"]
[Termination "Jospem won on time"]

1. c4 {[%clk 0:02:54.9]} 1... c5 {[%clk 0:02:55.5]} 2. g3 {[%clk 0:02:54.7]}
2... Nc6 {[%clk 0:02:56]} 3. Bg2 {[%clk 0:02:52.3]} 3... g6 {[%clk 0:02:56.6]}
4. Nc3 {[%clk 0:02:48.6]} 4... Bg7 {[%clk 0:02:56.9]} 5. a3 {[%clk 0:02:48.7]}
5... d6 {[%clk 0:02:56.4]} 6. Rb1 {[%clk 0:02:32.5]} 6... a5 {[%clk 0:02:56.3]}
7. d3 {[%clk 0:02:30.9]} 7... e6 {[%clk 0:02:56.4]} 8. e3 {[%clk 0:02:26.3]}
8... Nge7 {[%clk 0:02:56.4]} 9. Nge2 {[%clk 0:02:26.7]} 9... O-O {[%clk
0:02:56.5]} 10. O-O {[%clk 0:02:27.2]} 10... d5 {[%clk 0:02:53.5]} 11. cxd5
{[%clk 0:02:26.2]} 11... exd5 {[%clk 0:02:54.4]} 12. d4 {[%clk 0:02:25.9]} 12...
cxd4 {[%clk 0:02:49.7]} 13. Nxd4 {[%clk 0:02:25.7]} 13... Nxd4 {[%clk
0:02:44.3]} 14. exd4 {[%clk 0:02:26.6]} 14... Bf5 {[%clk 0:02:44.3]} 15. Ra1
{[%clk 0:02:24.7]} 15... Be6 {[%clk 0:02:44.7]} 16. Bg5 {[%clk 0:02:21]} 16...
Re8 {[%clk 0:02:44.7]} 17. Re1 {[%clk 0:02:18.9]} 17... Qd7 {[%clk 0:02:44.4]}
18. Bxe7 {[%clk 0:02:09.5]} 18... Rxe7 {[%clk 0:02:44.1]} 19. Nxd5 {[%clk
0:02:09.4]} 19... Bxd5 {[%clk 0:02:42.9]} 20. Rxe7 {[%clk 0:02:10.3]} 20... Qxe7
{[%clk 0:02:43.8]} 21. Bxd5 {[%clk 0:02:10]} 21... Rd8 {[%clk 0:02:44.5]} 22.
Qf3 {[%clk 0:02:08.1]} 22... Bxd4 {[%clk 0:02:44.6]} 23. Rd1 {[%clk 0:01:56]}
23... Bb6 {[%clk 0:02:37.9]} 24. Qb3 {[%clk 0:01:40.2]} 24... Qc7 {[%clk
0:02:16.1]} 25. Rf1 {[%clk 0:00:56.8]} 25... Rd6 {[%clk 0:02:12.6]} 26. Kg2
{[%clk 0:00:45.7]} 26... a4 {[%clk 0:02:13]} 27. Qb5 {[%clk 0:00:34.9]} 27...
Bd4 {[%clk 0:01:52.5]} 28. Re1 {[%clk 0:00:23.9]} 28... Kg7 {[%clk 0:01:49]} 29.
Re2 {[%clk 0:00:23.6]} 29... b6 {[%clk 0:01:35.2]} 30. Ba2 {[%clk 0:00:19.1]}
30... Qb7+ {[%clk 0:01:33.9]} 31. Kg1 {[%clk 0:00:17.3]} 31... Qf3 {[%clk
0:01:32.9]} 32. Qc4 {[%clk 0:00:10.5]} 32... Bxb2 {[%clk 0:01:02.6]} 33. Qxf7+
{[%clk 0:00:07.5]} 33... Qxf7 {[%clk 0:01:02.7]} 34. Bxf7 {[%clk 0:00:08.4]}
34... Bxa3 {[%clk 0:01:03.6]} 35. Be8 {[%clk 0:00:07]} 35... Rd4 {[%clk
0:00:49.9]} 36. Ra2 {[%clk 0:00:07.2]} 36... Kf8 {[%clk 0:00:46.9]} 37. Bb5
{[%clk 0:00:05.4]} 37... Bc5 {[%clk 0:00:38.4]} 38. Bxa4 {[%clk 0:00:05.7]}
38... Rb4 {[%clk 0:00:38.4]} 39. Bc2 {[%clk 0:00:05]} 39... Ke7 {[%clk
0:00:37.2]} 40. Ra7+ {[%clk 0:00:04.7]} 40... Kf6 {[%clk 0:00:37.7]} 41. Rxh7
{[%clk 0:00:02.8]} 41... Rb2 {[%clk 0:00:37.8]} 42. Be4 {[%clk 0:00:02.7]} 42...
Rxf2 {[%clk 0:00:37.9]} 43. Kh1 {[%clk 0:00:03.1]} 43... Re2 {[%clk 0:00:35.5]}
44. Bd3 {[%clk 0:00:02.6]} 44... Re3 {[%clk 0:00:35.6]} 45. Bc2 {[%clk
0:00:02.5]} 45... Rc3 {[%clk 0:00:35.3]} 46. Be4 {[%clk 0:00:02.1]} 46... Re3
{[%clk 0:00:34.9]} 47. Bg2 {[%clk 0:00:02.2]} 47... Re1+ {[%clk 0:00:34.6]} 0-1

[Event "*** Titled Tuesday Blitz"]
[Site "Chess.com"]
[Date "2020.05.26"]
[Round "3"]
[White "Vesper2018"]
[Black "doons21"]
[Result "1-0"]
[WhiteElo "2303"]
[BlackElo "2494"]
[TimeControl "180+1"]
[EndTime "10:28:00 PDT"]
[Termination "Vesper2018 won by resignation"]

1. e4 {[%clk 0:02:59.2]} 1... e6 {[%clk 0:02:58.7]} 2. d4 {[%clk 0:02:58.9]}
2... d5 {[%clk 0:02:57.8]} 3. e5 {[%clk 0:02:58.6]} 3... c5 {[%clk 0:02:57.4]}
4. c3 {[%clk 0:02:58.9]} 4... Qb6 {[%clk 0:02:56.8]} 5. Nf3 {[%clk 0:02:58.4]}
5... Nc6 {[%clk 0:02:57]} 6. a3 {[%clk 0:02:52.5]} 6... c4 {[%clk 0:02:56.1]} 7.
g3 {[%clk 0:02:51.2]} 7... Na5 {[%clk 0:02:55.5]} 8. Nbd2 {[%clk 0:02:49.3]}
8... Bd7 {[%clk 0:02:54.5]} 9. h4 {[%clk 0:02:48.4]} 9... Ne7 {[%clk 0:02:49.8]}
10. Bh3 {[%clk 0:02:47.8]} 10... Nec6 {[%clk 0:02:49]} 11. O-O {[%clk
0:02:45.9]} 11... h6 {[%clk 0:02:47.3]} 12. Rb1 {[%clk 0:02:42.3]} 12... Be7
{[%clk 0:02:46.9]} 13. Nh2 {[%clk 0:02:33.1]} 13... O-O-O {[%clk 0:02:41.9]} 14.
f4 {[%clk 0:02:30.6]} 14... g6 {[%clk 0:02:34.6]} 15. Ng4 {[%clk 0:02:25.2]}
15... Kb8 {[%clk 0:02:31.7]} 16. Nf6 {[%clk 0:02:22.3]} 16... Ka8 {[%clk
0:02:32]} 17. Kh2 {[%clk 0:02:02.4]} 17... Nb8 {[%clk 0:02:27.7]} 18. Rf2 {[%clk
0:01:50.2]} 18... Bc6 {[%clk 0:02:24.7]} 19. g4 {[%clk 0:01:34.1]} 19... Nd7
{[%clk 0:02:12.4]} 20. g5 {[%clk 0:01:30]} 20... hxg5 {[%clk 0:02:11.9]} 21.
hxg5 {[%clk 0:01:30.1]} 21... Rh4 {[%clk 0:01:40.8]} 22. Nf3 {[%clk 0:01:29.2]}
22... Rhh8 {[%clk 0:01:40.9]} 23. Kg3 {[%clk 0:01:26.1]} 23... Nb3 {[%clk
0:01:39.6]} 24. Be3 {[%clk 0:01:25.4]} 24... Ba4 {[%clk 0:01:38.5]} 25. Qe2
{[%clk 0:01:25.5]} 25... Qc7 {[%clk 0:01:25.4]} 26. Nh2 {[%clk 0:01:23.4]} 26...
Nb6 {[%clk 0:01:24.4]} 27. Nhg4 {[%clk 0:01:22.3]} 27... Bb5 {[%clk 0:01:23.1]}
28. Rh1 {[%clk 0:01:14.1]} 28... Na4 {[%clk 0:01:22.9]} 29. Rfh2 {[%clk
0:01:09.2]} 29... Qb6 {[%clk 0:01:11.2]} 30. Bf1 {[%clk 0:01:09.1]} 30... Rhf8
{[%clk 0:00:58]} 31. Rh7 {[%clk 0:01:07]} 31... Be8 {[%clk 0:00:56.7]} 32. Nxe8
{[%clk 0:01:02.9]} 32... Rdxe8 {[%clk 0:00:54.6]} 33. Nh6 {[%clk 0:01:02.7]}
33... Bxa3 {[%clk 0:00:51.8]} 34. bxa3 {[%clk 0:00:55]} 34... Nxc3 {[%clk
0:00:52]} 35. Qc2 {[%clk 0:00:51.2]} 35... Ne4+ {[%clk 0:00:50.5]} 36. Kg4
{[%clk 0:00:51.3]} 36... Nxd4 {[%clk 0:00:43.4]} 37. Qd1 {[%clk 0:00:44.6]}
37... Qb3 {[%clk 0:00:08.9]} 38. Qxd4 {[%clk 0:00:42.9]} 38... b6 {[%clk
0:00:09.2]} 39. Be2 {[%clk 0:00:40.1]} 39... Qc2 {[%clk 0:00:09.3]} 40. Bf3
{[%clk 0:00:37]} 40... Nc3 {[%clk 0:00:09.3]} 41. Rxf7 {[%clk 0:00:33.4]} 41...
Rxf7 {[%clk 0:00:08.5]} 42. Nxf7 {[%clk 0:00:33.8]} 42... Nb5 {[%clk 0:00:07.7]}
43. Qd2 {[%clk 0:00:32.8]} 43... Qb3 {[%clk 0:00:07.3]} 44. Nd6 {[%clk 0:00:31]}
44... c3 {[%clk 0:00:05.9]} 45. Qd3 {[%clk 0:00:27.9]} 45... Nxd6 {[%clk
0:00:06.3]} 46. exd6 {[%clk 0:00:28.3]} 46... c2 {[%clk 0:00:05.9]} 47. Qxb3
{[%clk 0:00:27.5]} 1-0

[Event "*** Titled Tuesday Blitz"]
[Site "Chess.com"]
[Date "2020.05.26"]
[Round "3"]
[White "Gyapiking"]
[Black "GMKrikor"]
[Result "1-0"]
[WhiteElo "2525"]
[BlackElo "2733"]
[TimeControl "180+1"]
[EndTime "10:28:02 PDT"]
[Termination "Gyapiking won on time"]

1. c4 {[%clk 0:03:00.9]} 1... e6 {[%clk 0:02:56.8]} 2. g3 {[%clk 0:03:00.1]}
2... d5 {[%clk 0:02:50.3]} 3. Bg2 {[%clk 0:02:59.7]} 3... dxc4 {[%clk
0:02:49.3]} 4. Qa4+ {[%clk 0:02:57.6]} 4... Nd7 {[%clk 0:02:48.3]} 5. Qxc4
{[%clk 0:02:57.5]} 5... a6 {[%clk 0:02:47.6]} 6. Nh3 {[%clk 0:02:52.5]} 6... b5
{[%clk 0:02:33.3]} 7. Qc2 {[%clk 0:02:50.7]} 7... Rb8 {[%clk 0:02:27.5]} 8. O-O
{[%clk 0:02:50.1]} 8... Ngf6 {[%clk 0:02:26.9]} 9. b3 {[%clk 0:02:43.1]} 9... c5
{[%clk 0:02:24.8]} 10. Bb2 {[%clk 0:02:42.4]} 10... Bd6 {[%clk 0:02:22.9]} 11.
Nc3 {[%clk 0:02:34.2]} 11... O-O {[%clk 0:02:21.1]} 12. Ng5 {[%clk 0:02:31.4]}
12... h6 {[%clk 0:02:02.8]} 13. Nce4 {[%clk 0:02:25.4]} 13... Nxe4 {[%clk
0:01:53.6]} 14. Nxe4 {[%clk 0:02:25.1]} 14... Be7 {[%clk 0:01:50]} 15. Rad1
{[%clk 0:02:12.2]} 15... Bb7 {[%clk 0:01:50]} 16. d4 {[%clk 0:02:11.5]} 16...
Bxe4 {[%clk 0:00:56.3]} 17. Bxe4 {[%clk 0:02:09.7]} 17... c4 {[%clk 0:00:31.8]}
18. d5 {[%clk 0:02:05.5]} 18... cxb3 {[%clk 0:00:24]} 19. axb3 {[%clk
0:02:01.3]} 19... Rc8 {[%clk 0:00:22.7]} 20. Qb1 {[%clk 0:01:59.6]} 20... Bf6
{[%clk 0:00:16.2]} 21. Bxf6 {[%clk 0:01:51.4]} 21... Nxf6 {[%clk 0:00:09.4]} 22.
dxe6 {[%clk 0:01:51.2]} 22... Qe7 {[%clk 0:00:10]} 23. exf7+ {[%clk 0:01:51.2]}
23... Qxf7 {[%clk 0:00:08]} 24. Bf3 {[%clk 0:01:51.1]} 24... Rfe8 {[%clk
0:00:06.8]} 25. Qa1 {[%clk 0:01:46.5]} 25... Qe6 {[%clk 0:00:05.9]} 26. Rd3
{[%clk 0:01:43.1]} 26... Qb6 {[%clk 0:00:04.6]} 27. Rfd1 {[%clk 0:01:41.3]}
27... Re6 {[%clk 0:00:05.3]} 28. Qd4 {[%clk 0:01:39.6]} 28... Qxd4 {[%clk
0:00:05.1]} 29. Rxd4 {[%clk 0:01:39.3]} 29... Rc3 {[%clk 0:00:04.9]} 30. Rd6
{[%clk 0:01:37.2]} 30... Rxd6 {[%clk 0:00:04.2]} 31. Rxd6 {[%clk 0:01:36.5]}
31... a5 {[%clk 0:00:04.9]} 32. Ra6 {[%clk 0:01:34.2]} 32... Rxb3 {[%clk
0:00:05.2]} 33. Rxa5 {[%clk 0:01:33]} 33... Rb2 {[%clk 0:00:06.1]} 34. Kg2
{[%clk 0:01:32.2]} 34... b4 {[%clk 0:00:04.1]} 35. Rb5 {[%clk 0:01:31.6]} 35...
Nd7 {[%clk 0:00:03.7]} 36. h4 {[%clk 0:01:30.4]} 36... Kf8 {[%clk 0:00:03.8]}
37. h5 {[%clk 0:01:30.1]} 37... Ke7 {[%clk 0:00:04.1]} 38. Rb7 {[%clk
0:01:29.2]} 38... Kd6 {[%clk 0:00:04.5]} 39. g4 {[%clk 0:01:27.7]} 39... Rb1
{[%clk 0:00:02.2]} 40. Be4 {[%clk 0:01:24]} 40... Rb2 {[%clk 0:00:02.5]} 41. Bf3
{[%clk 0:01:21.7]} 41... Rb1 {[%clk 0:00:02.3]} 42. Rb5 {[%clk 0:01:19.4]} 42...
Rb2 {[%clk 0:00:02.5]} 43. Kg3 {[%clk 0:01:18.3]} 43... Ne5 {[%clk 0:00:02.8]}
44. Kf4 {[%clk 0:01:10.5]} 44... Nd7 {[%clk 0:00:02.8]} 45. Rd5+ {[%clk
0:01:09.3]} 45... Ke7 {[%clk 0:00:02.8]} 46. Rb5 {[%clk 0:01:08.8]} 46... Kd6
{[%clk 0:00:02.6]} 47. g5 {[%clk 0:01:08.8]} 47... hxg5+ {[%clk 0:00:02.5]} 48.
Kxg5 {[%clk 0:01:08.7]} 48... Ne5 {[%clk 0:00:03.2]} 49. Rb6+ {[%clk 0:01:03.7]}
49... Ke7 {[%clk 0:00:02.6]} 50. Rb7+ {[%clk 0:01:03.1]} 50... Kd6 {[%clk
0:00:02.7]} 51. Rxg7 {[%clk 0:01:02.3]} 51... Nxf3+ {[%clk 0:00:03]} 52. exf3
{[%clk 0:01:01.9]} 52... Rxf2 {[%clk 0:00:03.9]} 53. Rg6+ {[%clk 0:00:54.5]}
53... Ke5 {[%clk 0:00:02.6]} 54. Rb6 {[%clk 0:00:47.9]} 54... Rg2+ {[%clk
0:00:02.2]} 55. Kh6 {[%clk 0:00:47.1]} 1-0

[Event "*** Titled Tuesday Blitz"]
[Site "Chess.com"]
[Date "2020.05.26"]
[Round "3"]
[White "Alexander_Moskalenko"]
[Black "Atanejhad"]
[Result "1-0"]
[WhiteElo "2792"]
[BlackElo "2444"]
[TimeControl "180+1"]
[EndTime "10:28:03 PDT"]
[Termination "Alexander_Moskalenko won on time"]

1. e4 {[%clk 0:02:18.8]} 1... c5 {[%clk 0:02:51.9]} 2. c3 {[%clk 0:01:57.8]}
2... d5 {[%clk 0:02:50.4]} 3. exd5 {[%clk 0:01:52.6]} 3... Qxd5 {[%clk
0:02:51.3]} 4. d4 {[%clk 0:01:52]} 4... Nc6 {[%clk 0:02:51.9]} 5. Nf3 {[%clk
0:01:52]} 5... Bf5 {[%clk 0:02:51.6]} 6. Be2 {[%clk 0:01:51.1]} 6... Bxb1 {[%clk
0:02:50.8]} 7. Rxb1 {[%clk 0:01:50.3]} 7... cxd4 {[%clk 0:02:49.9]} 8. cxd4
{[%clk 0:01:50.3]} 8... Nf6 {[%clk 0:02:47.2]} 9. a3 {[%clk 0:01:46.6]} 9... e6
{[%clk 0:02:45.3]} 10. O-O {[%clk 0:01:41.6]} 10... Be7 {[%clk 0:02:44.9]} 11.
Be3 {[%clk 0:01:41.7]} 11... O-O {[%clk 0:02:43.8]} 12. h3 {[%clk 0:01:41.5]}
12... Rfd8 {[%clk 0:02:43.6]} 13. Rc1 {[%clk 0:01:40.8]} 13... Rac8 {[%clk
0:02:40.7]} 14. Qa4 {[%clk 0:01:41.1]} 14... a6 {[%clk 0:02:37.5]} 15. Rfd1
{[%clk 0:01:41]} 15... Ne4 {[%clk 0:02:30.7]} 16. Bc4 {[%clk 0:01:38.4]} 16...
Qh5 {[%clk 0:02:21.9]} 17. Be2 {[%clk 0:01:09.3]} 17... Qa5 {[%clk 0:02:16.1]}
18. Qc2 {[%clk 0:01:05.6]} 18... Nf6 {[%clk 0:02:10]} 19. Qb1 {[%clk 0:01:05.4]}
19... Nd5 {[%clk 0:02:04.9]} 20. Bd2 {[%clk 0:01:05.4]} 20... Qb6 {[%clk
0:02:02.2]} 21. Bd3 {[%clk 0:01:03.9]} 21... h6 {[%clk 0:01:56.4]} 22. Be1
{[%clk 0:00:49.4]} 22... Nf4 {[%clk 0:01:51.3]} 23. Bf1 {[%clk 0:00:47]} 23...
Bf6 {[%clk 0:01:46.9]} 24. Qe4 {[%clk 0:00:44.5]} 24... Nd5 {[%clk 0:01:36.6]}
25. b4 {[%clk 0:00:44]} 25... Nde7 {[%clk 0:01:25.4]} 26. Rc5 {[%clk 0:00:42.2]}
26... Rd5 {[%clk 0:01:01.5]} 27. Bc4 {[%clk 0:00:40.6]} 27... Rd6 {[%clk
0:00:58]} 28. h4 {[%clk 0:00:35]} 28... Rcd8 {[%clk 0:00:55.5]} 29. g4 {[%clk
0:00:34.4]} 29... Nxd4 {[%clk 0:00:53.8]} 30. Rc1 {[%clk 0:00:14.2]} 30... Nxf3+
{[%clk 0:00:27.4]} 31. Qxf3 {[%clk 0:00:15.1]} 31... R6d7 {[%clk 0:00:24.9]} 32.
Rh5 {[%clk 0:00:12.1]} 32... Ng6 {[%clk 0:00:20.5]} 33. g5 {[%clk 0:00:12.1]}
33... Ne5 {[%clk 0:00:19.8]} 34. Qe2 {[%clk 0:00:11.6]} 34... hxg5 {[%clk
0:00:15.1]} 35. hxg5 {[%clk 0:00:12.5]} 35... Be7 {[%clk 0:00:14.6]} 36. Qxe5
{[%clk 0:00:11.9]} 36... Rd1 {[%clk 0:00:12.5]} 37. Qh2 {[%clk 0:00:11.2]} 37...
f6 {[%clk 0:00:03.6]} 38. g6 {[%clk 0:00:11.6]} 1-0

[Event "*** Titled Tuesday Blitz"]
[Site "Chess.com"]
[Date "2020.05.26"]
[Round "3"]
[White "ulkaf961"]
[Black "RestartingChess"]
[Result "1-0"]
[WhiteElo "2200"]
[BlackElo "2463"]
[TimeControl "180+1"]
[EndTime "10:28:03 PDT"]
[Termination "ulkaf961 won by resignation"]

1. b3 {[%clk 0:03:00.9]} 1... Nf6 {[%clk 0:02:59.5]} 2. Bb2 {[%clk 0:03:01.1]}
2... g6 {[%clk 0:03:00.4]} 3. g3 {[%clk 0:03:01.2]} 3... Bg7 {[%clk 0:03:00]} 4.
Bg2 {[%clk 0:03:01.9]} 4... O-O {[%clk 0:03:00.4]} 5. Nf3 {[%clk 0:03:01.9]}
5... d5 {[%clk 0:03:00.8]} 6. O-O {[%clk 0:03:01.8]} 6... c5 {[%clk 0:03:00.4]}
7. c4 {[%clk 0:03:00.7]} 7... d4 {[%clk 0:02:57]} 8. e3 {[%clk 0:03:00.9]} 8...
dxe3 {[%clk 0:02:56.5]} 9. dxe3 {[%clk 0:02:59.9]} 9... Nc6 {[%clk 0:02:55.3]}
10. Nc3 {[%clk 0:02:39]} 10... Bf5 {[%clk 0:02:45.6]} 11. Qxd8 {[%clk
0:02:23.2]} 11... Raxd8 {[%clk 0:02:44.9]} 12. Rad1 {[%clk 0:02:18.4]} 12... e6
{[%clk 0:02:40.5]} 13. Na4 {[%clk 0:02:08.1]} 13... b6 {[%clk 0:02:19.4]} 14.
Nh4 {[%clk 0:02:04.2]} 14... Be4 {[%clk 0:01:58.7]} 15. Bxf6 {[%clk 0:02:03.6]}
15... Bxg2 {[%clk 0:01:58.3]} 16. Bxd8 {[%clk 0:01:22.9]} 16... Bxf1 {[%clk
0:01:57.5]} 17. Bxb6 {[%clk 0:01:14.4]} 17... Be2 {[%clk 0:01:44.6]} 18. Rd2
{[%clk 0:01:14.5]} 18... axb6 {[%clk 0:01:42.1]} 19. Rxe2 {[%clk 0:01:13.8]}
19... Ne5 {[%clk 0:01:33]} 20. f4 {[%clk 0:01:03]} 20... Ng4 {[%clk 0:01:22.9]}
21. Kg2 {[%clk 0:00:41]} 21... Rb8 {[%clk 0:01:17.2]} 22. h3 {[%clk 0:00:40.5]}
22... Nf6 {[%clk 0:01:17.2]} 23. e4 {[%clk 0:00:38.7]} 23... h6 {[%clk
0:00:50.5]} 24. Nf3 {[%clk 0:00:37.6]} 24... b5 {[%clk 0:00:43.4]} 25. cxb5
{[%clk 0:00:37]} 25... Rxb5 {[%clk 0:00:44.3]} 26. Ne5 {[%clk 0:00:37.2]} 26...
Bf8 {[%clk 0:00:42.3]} 27. Nc4 {[%clk 0:00:36.9]} 27... Be7 {[%clk 0:00:37.5]}
28. Kf3 {[%clk 0:00:37.1]} 28... Kg7 {[%clk 0:00:37.5]} 29. Rd2 {[%clk
0:00:36.8]} 29... Rb7 {[%clk 0:00:35.9]} 30. g4 {[%clk 0:00:36.4]} 30... g5
{[%clk 0:00:35.7]} 31. f5 {[%clk 0:00:33.1]} 31... exf5 {[%clk 0:00:34.2]} 32.
gxf5 {[%clk 0:00:32.7]} 32... h5 {[%clk 0:00:34.2]} 33. e5 {[%clk 0:00:32.9]}
33... g4+ {[%clk 0:00:30.3]} 34. Kf4 {[%clk 0:00:25.8]} 34... Nh7 {[%clk
0:00:25.7]} 35. f6+ {[%clk 0:00:26]} 35... Nxf6 {[%clk 0:00:23.3]} 36. exf6+
{[%clk 0:00:26]} 36... Bxf6 {[%clk 0:00:24.2]} 37. hxg4 {[%clk 0:00:26.1]} 37...
hxg4 {[%clk 0:00:24.7]} 38. Kxg4 {[%clk 0:00:26.3]} 38... Bd4 {[%clk 0:00:25]}
39. Kf5 {[%clk 0:00:26]} 39... Rd7 {[%clk 0:00:23.8]} 40. Nxc5 {[%clk
0:00:22.6]} 40... Rd5+ {[%clk 0:00:23.6]} 41. Ke4 {[%clk 0:00:22.9]} 41... Rxc5
{[%clk 0:00:22.7]} 42. Kxd4 {[%clk 0:00:22.1]} 42... Rb5 {[%clk 0:00:23.2]} 43.
Rg2+ {[%clk 0:00:21.9]} 43... Kf6 {[%clk 0:00:23.4]} 44. Rg3 {[%clk 0:00:21.6]}
44... Ke6 {[%clk 0:00:23.9]} 45. a4 {[%clk 0:00:21.8]} 45... Rb8 {[%clk
0:00:23.6]} 46. a5 {[%clk 0:00:21.9]} 46... Rd8+ {[%clk 0:00:24.5]} 47. Kc3
{[%clk 0:00:21.5]} 47... Rc8 {[%clk 0:00:25.4]} 48. b4 {[%clk 0:00:22]} 48...
Kd5 {[%clk 0:00:26.3]} 49. Rd3+ {[%clk 0:00:21.9]} 49... Ke4 {[%clk 0:00:25.9]}
50. Rd4+ {[%clk 0:00:21.8]} 50... Kf3 {[%clk 0:00:25.2]} 51. b5 {[%clk 0:00:22]}
51... f5 {[%clk 0:00:25.6]} 52. a6 {[%clk 0:00:21.8]} 52... f4 {[%clk
0:00:26.5]} 53. b6 {[%clk 0:00:21.7]} 53... Ke2 {[%clk 0:00:26.8]} 54. Rxf4
{[%clk 0:00:21.2]} 54... Rc6 {[%clk 0:00:27.1]} 55. a7 {[%clk 0:00:20.6]} 1-0

[Event "*** Titled Tuesday Blitz"]
[Site "Chess.com"]
[Date "2020.05.26"]
[Round "3"]
[White "DortmundCity"]
[Black "MarceloPlaya"]
[Result "1-0"]
[WhiteElo "2581"]
[BlackElo "2371"]
[TimeControl "180+1"]
[EndTime "10:28:04 PDT"]
[Termination "DortmundCity won on time"]

1. e4 {[%clk 0:01:47.2]} 1... e6 {[%clk 0:02:45.7]} 2. d4 {[%clk 0:01:45.1]}
2... d5 {[%clk 0:02:44.4]} 3. e5 {[%clk 0:01:44.9]} 3... c5 {[%clk 0:02:43.1]}
4. c3 {[%clk 0:01:45.4]} 4... Nc6 {[%clk 0:02:42.4]} 5. Be3 {[%clk 0:01:45.1]}
5... Qb6 {[%clk 0:02:37.8]} 6. Qd2 {[%clk 0:01:44.9]} 6... Nge7 {[%clk
0:02:35.4]} 7. Bd3 {[%clk 0:01:43.6]} 7... Ng6 {[%clk 0:02:30.7]} 8. Nf3 {[%clk
0:01:38.8]} 8... Be7 {[%clk 0:02:27.7]} 9. h4 {[%clk 0:01:31.2]} 9... c4 {[%clk
0:02:03.8]} 10. Be2 {[%clk 0:01:28.2]} 10... O-O {[%clk 0:01:58.2]} 11. h5
{[%clk 0:01:24]} 11... Nh8 {[%clk 0:01:57.7]} 12. h6 {[%clk 0:01:24.2]} 12... g6
{[%clk 0:01:54.8]} 13. Qc2 {[%clk 0:01:13.5]} 13... f5 {[%clk 0:01:49.1]} 14.
exf6 {[%clk 0:01:09]} 14... Bxf6 {[%clk 0:01:48.2]} 15. b3 {[%clk 0:01:04.3]}
15... cxb3 {[%clk 0:01:44.6]} 16. axb3 {[%clk 0:01:03.5]} 16... Nf7 {[%clk
0:01:41.3]} 17. Nbd2 {[%clk 0:00:56.6]} 17... Bd7 {[%clk 0:01:39.6]} 18. Bd3
{[%clk 0:00:51.5]} 18... Ne7 {[%clk 0:01:28.5]} 19. Bf4 {[%clk 0:00:46.6]} 19...
Rac8 {[%clk 0:01:24.2]} 20. Ne5 {[%clk 0:00:37.6]} 20... Nxe5 {[%clk 0:01:18.9]}
21. dxe5 {[%clk 0:00:34.1]} 21... Bh8 {[%clk 0:01:12.4]} 22. Bg3 {[%clk
0:00:34.1]} 22... Nf5 {[%clk 0:01:09]} 23. Bxf5 {[%clk 0:00:31.7]} 23... Rxf5
{[%clk 0:01:06.9]} 24. Nf3 {[%clk 0:00:27.1]} 24... Bb5 {[%clk 0:00:59.5]} 25.
Qd2 {[%clk 0:00:25.2]} 25... Qc5 {[%clk 0:00:54.5]} 26. Rc1 {[%clk 0:00:21.5]}
26... a5 {[%clk 0:00:41.7]} 27. Nd4 {[%clk 0:00:18.4]} 27... Bxe5 {[%clk
0:00:34.9]} 28. Nxf5 {[%clk 0:00:15.3]} 28... Bxc3 {[%clk 0:00:34.6]} 29. Rxc3
{[%clk 0:00:13.4]} 29... Qxc3 {[%clk 0:00:34.5]} 30. Qxc3 {[%clk 0:00:12.8]}
30... Rxc3 {[%clk 0:00:33.3]} 31. Ne7+ {[%clk 0:00:13.7]} 31... Kf7 {[%clk
0:00:32]} 32. Rh3 {[%clk 0:00:14.1]} 32... Rxb3 {[%clk 0:00:22.3]} 33. Nc8
{[%clk 0:00:10.5]} 33... Rb1+ {[%clk 0:00:18.6]} 34. Kd2 {[%clk 0:00:10.4]}
34... a4 {[%clk 0:00:18.2]} 35. Be5 {[%clk 0:00:07.9]} 35... Rb3 {[%clk
0:00:12.4]} 36. Rxb3 {[%clk 0:00:07.2]} 36... axb3 {[%clk 0:00:12.2]} 37. Nd6+
{[%clk 0:00:08.1]} 37... Ke7 {[%clk 0:00:11.5]} 38. Nxb5 {[%clk 0:00:09]} 38...
Kd7 {[%clk 0:00:10.6]} 39. Kc3 {[%clk 0:00:09.3]} 1-0